bitfinex/quotes_SOLUSD_20241101
["timestamp","ask_amount","ask_price","bid_price","bid_amount"]
[1730485340580,22.14654836,166.68,166.63,22.14654836]
[1730485340791,22.14654836,166.69,166.63,22.14654836]
[1730485340994,22.14654836,166.68,166.63,22.14654836]
[1730485341197,22.14654836,166.67,166.61,43.15344836]
[1730485341401,22.14654836,166.67,166.62,22.14654836]
[1730485342597,22.14654836,166.68,166.62,22.14654836]
[1730485342805,22.14654836,166.7,166.65,22.14654836]
[1730485343309,22.14654836,166.68,166.63,22.14654836]
[1730485343887,22.14654836,166.68,166.62,22.14654836]
[1730485345191,22.14654836,166.67,166.61,22.14654836]
[1730485345489,22.14654836,166.66,166.61,22.14654836]
[1730485346705,22.14654836,166.67,166.62,22.14654836]
[1730485346899,22.14654836,166.66,166.61,22.14654836]
[1730485347501,22.14654836,166.62,166.54,15.0105]
[1730485347702,32.08923257,166.69,166.54,16.51209012]
[1730485348000,23.776884,166.68,166.54,16.51209012]
[1730485348584,23.776884,166.68,166.54,15.0105]
[1730485348801,22.14654836,166.56,166.54,15.0105]
[1730485349902,22.14654836,166.58,166.54,15.0105]
[1730485351305,22.14654836,166.6,166.54,43.16154836]
[1730485351506,22.14654836,166.61,166.55,45.92343236]
[1730485351805,22.14654836,166.6,166.55,45.92343236]
[1730485353097,22.14654836,166.61,166.56,6.0038]
[1730485353289,22.14654836,166.62,166.57,45.92343236]
[1730485353606,22.14654836,166.63,166.58,22.14654836]
[1730485353809,22.14654836,166.62,166.57,45.92343236]
[1730485354196,22.14654836,166.61,166.57,23.776884]
[1730485354586,22.14654836,166.6,166.56,15.0096]
[1730485354793,22.14654836,166.59,166.56,21.0134]
[1730485355400,22.14654836,166.59,166.53,22.14654836]
[1730485355607,22.14654836,166.56,166.54,1.50148349]
[1730485355903,22.14654836,166.57,166.54,1.50149229]
[1730485356494,22.14654836,166.58,166.54,7.50589229]
[1730485356708,22.14654836,166.59,166.54,7.50589229]
[1730485357001,22.14654836,166.59,166.54,6.0044]
[1730485358104,22.14654836,166.59,166.54,28.15094836]
[1730485358919,22.14654836,166.64,166.53,44.793884]
[1730485358920,22.14654836,166.57,166.53,44.793884]
[1730485359207,22.14654836,166.56,166.53,44.793884]
[1730485359412,22.14654836,166.54,166.52,6.6223]
[1730485359713,22.14654836,166.54,166.52,12.6274]
[1730485360214,22.14654836,166.55,166.52,12.6274]
[1730485361005,22.14654836,166.54,166.52,6.6223]
[1730485361206,22.14654836,166.53,166.5,1.50178668]
[1730485361414,22.14654836,166.51,166.47,1.33503411]
[1730485361712,22.14654836,166.48,166.47,1.33503411]
[1730485361909,22.14654836,166.48,166.43,44.72488295]
[1730485362111,22.14654836,166.47,166.43,43.6806]
[1730485362294,22.14654836,166.45,166.43,21.5609]
[1730485362495,22.14654836,166.45,166.43,6.5399]
[1730485362690,13.87884953,166.44,166.39,20.47234953]
[1730485362893,6.09,166.53,166.39,20.47234953]
[1730485362894,13.87884953,166.45,166.39,26.48224953]
[1730485363113,13.87884953,166.45,166.4,13.87884953]
[1730485364203,13.87884953,166.45,166.41,23.776884]
[1730485364603,22.20458747,166.45,166.4,22.20458747]
[1730485364799,22.20458747,166.47,166.42,22.20458747]
[1730485365398,22.20458747,166.47,166.43,6.0085]
[1730485365596,22.20458747,166.46,166.43,6.0085]
[1730485365808,22.20458747,166.46,166.42,21.0309]
[1730485366010,22.20458747,166.44,166.42,15.0221]
[1730485366215,22.20458747,166.44,166.4,23.776884]
[1730485366397,22.20458747,166.43,166.38,21.0354]
[1730485367816,22.20458747,166.43,166.38,43.23998747]
[1730485369827,22.20458747,166.45,166.4,22.20458747]
[1730485370021,22.20458747,166.46,166.4,22.20458747]
[1730485371909,22.20458747,166.45,166.41,6.0092]
[1730485372222,22.20458747,166.45,166.4,43.23818747]
[1730485372826,22.20458747,166.47,166.41,45.98147147]
[1730485373323,22.20458747,166.46,166.41,45.98147147]
[1730485373502,22.20458747,166.46,166.42,6.0088]
[1730485374421,22.20458747,166.43,166.38,6.0103]
[1730485375030,22.20458747,166.43,166.38,28.21488747]
[1730485375216,22.20458747,166.43,166.38,43.24068747]
[1730485375725,22.20458747,166.43,166.39,23.776884]
[1730485376029,22.20458747,166.43,166.4,6.0096]
[1730485376704,22.20458747,166.45,166.4,6.0096]
[1730485378320,22.20458747,166.46,166.4,28.21418747]
[1730485380211,22.20458747,166.45,166.4,28.21418747]
[1730485380728,22.20458747,166.47,166.42,22.20458747]
[1730485380930,22.20458747,166.48,166.43,22.20458747]
[1730485381226,22.20458747,166.48,166.4,21.0336]
[1730485381227,22.20458747,166.48,166.42,22.20458747]
[1730485381606,22.20458747,166.5,166.45,45.98147147]
[1730485381802,16.4763,166.51,166.46,22.20458747]
[1730485382006,22.20458747,166.5,166.45,45.98147147]
[1730485382425,38.68088747,166.51,166.46,6.0074]
[1730485382627,22.20458747,166.5,166.45,38.796084]
[1730485382815,22.20458747,166.5,166.45,61.00067147]
[1730485383019,22.20458747,166.51,166.46,22.20458747]
[1730485383413,22.20458747,166.51,166.45,67.00847147]
[1730485384515,22.20458747,166.51,166.46,22.20458747]
[1730485385414,22.20458747,166.5,166.46,6.0073]
[1730485385722,22.20458747,166.48,166.43,28.22928747]
[1730485385926,22.20458747,166.49,166.44,22.20458747]
[1730485386109,22.20458747,166.49,166.43,27.0544]
[1730485386110,22.20458747,166.51,166.45,22.20458747]
[1730485386427,22.20458747,166.51,166.46,22.20458747]
[1730485386631,13.86882962,166.51,166.46,13.86882962]
[1730485386836,13.86882962,166.5,166.44,37.64571362]
[1730485387127,13.86882962,166.49,166.44,43.65371362]
[1730485387354,13.86882962,166.49,166.44,29.784884]
[1730485387519,13.86882962,166.48,166.44,29.784884]
[1730485388133,13.86882962,166.47,166.43,15.0213]
[1730485388336,13.86882962,166.46,166.43,15.0213]
[1730485388505,13.86882962,166.46,166.42,6.0087]
[1730485388832,13.86882962,166.45,166.41,6.0091]
[1730485389128,13.86882962,166.46,166.41,19.87792962]
[1730485389305,13.86882962,166.46,166.41,6.0091]
[1730485389825,13.86882962,166.45,166.41,6.0091]
[1730485390014,13.86882962,166.45,166.4,34.90182962]
[1730485390329,13.86882962,166.43,166.38,6.01]
[1730485390705,13.86882962,166.43,166.37,28.89532962]
[1730485390912,13.86882962,166.42,166.37,34.90572962]
[1730485391114,36.37792962,166.48,166.36,1.47839206]
[1730485391115,13.86882962,166.39,166.36,1.47839206]
[1730485391438,13.86882962,166.41,166.35,13.86882962]
[1730485391735,13.86882962,166.42,166.37,13.86882962]
[1730485392416,13.86882962,166.42,166.36,13.86882962]
[1730485392735,13.86882962,166.41,166.36,13.86882962]
[1730485393414,13.86882962,166.41,166.36,19.87972962]
[1730485393619,13.86882962,166.43,166.38,13.86882962]
[1730485394134,13.86882962,166.43,166.37,37.64571362]
[1730485396236,13.86882962,166.44,166.38,13.86882962]
[1730485396937,13.86882962,166.44,166.39,13.86882962]
[1730485397137,13.86882962,166.44,166.38,13.86882962]
[1730485398114,13.86882962,166.46,166.4,13.86882962]
[1730485399222,13.86882962,166.47,166.42,13.86882962]
[1730485399833,13.86882962,166.46,166.4,13.86882962]
[1730485400027,13.86882962,166.45,166.4,13.86882962]
[1730485400231,13.86882962,166.44,166.39,13.86882962]
[1730485400432,13.86882962,166.43,166.38,13.86882962]
[1730485400625,13.86882962,166.43,166.37,13.86882962]
[1730485400824,13.86882962,166.43,166.36,1.50335808]
[1730485400825,13.86882962,166.42,166.36,15.3721877]
[1730485401032,13.86882962,166.42,166.36,13.86882962]
[1730485401224,13.86882962,166.42,166.37,13.86882962]
[1730485401429,13.86882962,166.43,166.38,13.86882962]
[1730485403721,23.776884,166.46,166.4,13.86882962]
[1730485403722,13.86882962,166.46,166.4,13.86882962]
[1730485403924,13.86882962,166.47,166.42,13.86882962]
[1730485404431,13.86882962,166.47,166.41,13.86882962]
[1730485404947,13.86882962,166.45,166.4,13.86882962]
[1730485405325,16.5023,166.48,166.44,13.86882962]
[1730485405535,16.5023,166.48,166.45,13.86882962]
[1730485405942,16.5023,166.48,166.44,13.86882962]
[1730485407744,16.5023,166.48,166.45,13.86882962]
[1730485407942,11.10267238,166.49,166.46,13.86882962]
[1730485408854,11.10267238,166.49,166.45,13.86882962]
[1730485409147,13.86882962,166.48,166.43,13.86882962]
[1730485409337,13.86882962,166.47,166.42,13.86882962]
[1730485409729,29.70572962,166.45,166.4,13.86882962]
[1730485410237,15.8369,166.45,166.4,13.86882962]
[1730485410937,15.8369,166.45,166.41,13.86882962]
[1730485411137,15.8369,166.45,166.42,13.86882962]
[1730485412372,15.8369,166.45,166.43,13.86882962]
[1730485412526,15.8369,166.45,166.44,13.86882962]
[1730485412840,20.0,166.48,166.44,13.86882962]
[1730485413035,20.0,166.48,166.45,13.86882962]
[1730485416255,20.0,166.48,166.44,13.86882962]
[1730485417555,20.0,166.48,166.45,13.86882962]
[1730485417943,26.0067,166.48,166.44,13.86882962]
[1730485418457,26.0067,166.48,166.43,13.86882962]
[1730485418650,26.0067,166.48,166.44,13.86882962]
[1730485418959,20.0,166.48,166.45,13.86882962]
[1730485419957,20.0,166.48,166.44,13.86882962]
[1730485420267,39.87552962,166.48,166.43,13.86882962]
[1730485420449,13.86882962,166.46,166.41,13.86882962]
[1730485420651,13.86882962,166.46,166.4,13.86882962]
[1730485420860,6.0078,166.45,166.41,13.86882962]
[1730485421063,19.87662962,166.45,166.4,13.86882962]
[1730485421659,20.0,166.44,166.39,13.86882962]
[1730485421967,33.86882962,166.44,166.39,13.86882962]
[1730485422147,20.0,166.44,166.4,13.86882962]
[1730485422345,29.44012962,166.42,166.37,13.86882962]
[1730485422543,33.86882962,166.41,166.36,13.86882962]
[1730485422857,33.86882962,166.41,166.35,13.86882962]
[1730485423363,39.87822962,166.41,166.35,13.86882962]
[1730485423858,20.0,166.41,166.38,13.86882962]
[1730485424070,20.0,166.41,166.39,13.86882962]
[1730485424248,15.5713,166.42,166.39,13.86882962]
[1730485426452,15.5713,166.42,166.33,23.776884]
[1730485426453,15.5713,166.42,166.38,13.86882962]
[1730485426655,15.5713,166.42,166.39,13.86882962]
[1730485427250,20.0,166.44,166.41,13.86882962]
[1730485427453,15.1928,166.46,166.43,13.86882962]
[1730485427750,15.1928,166.5,166.45,13.86882962]
[1730485427955,15.1928,166.5,166.46,13.86882962]
[1730485428168,15.1928,166.5,166.47,13.86882962]
[1730485428367,15.1928,166.5,166.46,13.86882962]
[1730485428568,15.1928,166.5,166.45,13.86882962]
[1730485428763,15.1928,166.5,166.46,13.86882962]
[1730485429146,20.0,166.49,166.46,13.86882962]
[1730485431266,20.0,166.49,166.45,13.86882962]
[1730485433371,20.0,166.46,166.41,13.86882962]
[1730485434148,33.86882962,166.48,166.42,13.86882962]
[1730485434360,20.0,166.49,166.44,13.86882962]
[1730485434567,20.0,166.49,166.45,13.86882962]
[1730485435174,20.0,166.49,166.44,13.86882962]
[1730485435474,20.0,166.49,166.45,13.86882962]
[1730485436174,20.0,166.49,166.44,13.86882962]
[1730485436580,33.86882962,166.49,166.43,13.86882962]
[1730485438372,20.0,166.49,166.45,13.86882962]
[1730485438676,20.0,166.49,166.44,13.86882962]
[1730485438856,33.86882962,166.49,166.43,13.86882962]
[1730485439179,13.86882962,166.47,166.41,13.86882962]
[1730485439958,33.86882962,166.49,166.43,13.86882962]
[1730485440765,33.86882962,166.49,166.42,13.86882962]
[1730485442976,20.0,166.49,166.44,13.86882962]
[1730485443387,33.86882962,166.49,166.43,13.86882962]
[1730485443572,20.0,166.49,166.43,13.86882962]
[1730485443784,20.0,166.49,166.44,13.86882962]
[1730485444169,11.10016169,166.52,166.48,13.86882962]
[1730485444372,11.10016169,166.52,166.43,13.86882962]
[1730485444583,17.10536169,166.52,166.41,16.1378]
[1730485444894,16.1469,166.5,166.38,6.202]
[1730485445074,16.1469,166.5,166.39,1.50339169]
[1730485445393,43.776884,166.49,166.34,27.1336]
[1730485445690,13.86882962,166.4,166.35,1.50344565]
[1730485445868,13.86882962,166.39,166.34,6.0927]
[1730485446071,13.86882962,166.37,166.31,14.48400282]
[1730485446379,13.86882962,166.37,166.32,1.50387176]
[1730485446574,13.86882962,166.37,166.32,13.86882962]
[1730485447463,13.86882962,166.38,166.32,13.86882962]
[1730485447665,20.0,166.41,166.36,13.86882962]
[1730485448680,13.86882962,166.44,166.39,13.86882962]
[1730485448987,13.86882962,166.51,166.43,13.86882962]
[1730485449297,27.13376169,166.52,166.47,13.86882962]
[1730485449592,11.10016169,166.52,166.49,13.86882962]
[1730485450780,11.10016169,166.52,166.49,22.18767035]
[1730485451169,20.0,166.51,166.49,22.18767035]
[1730485451982,20.0,166.51,166.5,22.18767035]
[1730485452493,20.0,166.51,166.49,22.18767035]
[1730485453002,20.0,166.51,166.47,22.18767035]
[1730485453372,42.18767035,166.51,166.46,45.96455435]
[1730485453793,42.18767035,166.51,166.46,23.776884]
[1730485454799,42.18767035,166.51,166.46,45.96455435]
[1730485455177,20.0,166.51,166.47,22.18767035]
[1730485455380,11.10016169,166.52,166.5,22.18767035]
[1730485455578,22.18767035,166.59,166.51,22.18767035]
[1730485455774,22.18767035,166.59,166.54,22.18767035]
[1730485456178,22.18767035,166.58,166.53,22.18767035]
[1730485456505,22.18767035,166.57,166.52,22.18767035]
[1730485456676,22.18767035,166.56,166.51,22.18767035]
[1730485456871,22.18767035,166.54,166.49,22.18767035]
[1730485457705,22.18767035,166.55,166.47,6.007]
[1730485457877,22.18767035,166.55,166.5,22.18767035]
[1730485458078,20.0,166.55,166.51,22.18767035]
[1730485458790,22.18767035,166.59,166.53,22.18767035]
[1730485458990,22.18767035,166.59,166.54,22.18767035]
[1730485459408,22.18767035,166.56,166.51,22.18767035]
[1730485459587,22.18767035,166.56,166.5,22.18767035]
[1730485459904,22.18767035,166.56,166.51,22.18767035]
[1730485461003,22.18767035,166.57,166.52,22.18767035]
[1730485462597,22.18767035,166.55,166.5,45.96455435]
[1730485462910,22.18767035,166.57,166.52,22.18767035]
[1730485463210,20.0,166.56,166.52,22.18767035]
[1730485464684,22.18767035,166.58,166.52,22.18767035]
[1730485464925,20.0,166.57,166.53,22.18767035]
[1730485465205,20.0,166.57,166.52,22.18767035]
[1730485465412,22.18767035,166.58,166.52,22.18767035]
[1730485465704,22.18767035,166.59,166.53,22.18767035]
[1730485465906,38.48997035,166.61,166.55,22.18767035]
[1730485466910,22.18767035,166.6,166.54,22.18767035]
[1730485467097,22.18767035,166.59,166.54,22.18767035]
[1730485467405,22.18767035,166.55,166.5,45.96455435]
[1730485467614,22.18767035,166.54,166.49,22.18767035]
[1730485468205,22.18767035,166.55,166.49,22.18767035]
[1730485468789,22.18767035,166.55,166.5,22.18767035]
[1730485469683,22.18767035,166.55,166.49,22.18767035]
[1730485470407,22.18767035,166.58,166.53,22.18767035]
[1730485470612,22.18767035,166.6,166.54,22.18767035]
[1730485470792,22.18767035,166.6,166.55,22.18767035]
[1730485470995,12.0295,166.63,166.5,6.006]
[1730485470996,22.18767035,166.63,166.56,22.18767035]
[1730485471307,22.18767035,166.62,166.56,22.18767035]
[1730485472593,13.85055798,166.64,166.59,13.85055798]
[1730485473086,13.85055798,166.63,166.58,13.85055798]
[1730485473282,13.85055798,166.62,166.56,13.85055798]
[1730485473490,13.85055798,166.62,166.57,13.85055798]
[1730485474509,13.85055798,166.65,166.59,13.85055798]
[1730485474813,13.85055798,166.65,166.6,13.85055798]
[1730485474995,13.85055798,166.65,166.59,13.85055798]
[1730485475506,13.85055798,166.64,166.58,13.85055798]
[1730485475895,13.85055798,166.62,166.57,13.85055798]
[1730485476093,13.85055798,166.61,166.56,13.85055798]
[1730485476303,13.85055798,166.63,166.57,13.85055798]
[1730485476492,13.85055798,166.63,166.58,13.85055798]
[1730485476886,13.85055798,166.64,166.59,13.85055798]
[1730485477480,13.85055798,166.62,166.56,37.62744198]
[1730485478107,13.85055798,166.61,166.56,13.85055798]
[1730485478405,13.85055798,166.6,166.55,13.85055798]
[1730485478607,13.85055798,166.61,166.55,13.85055798]
[1730485479002,13.85055798,166.61,166.56,13.85055798]
[1730485479204,13.85055798,166.64,166.58,13.85055798]
[1730485479409,13.85055798,166.64,166.59,13.85055798]
[1730485480210,13.85055798,166.65,166.59,13.85055798]
[1730485480389,13.85055798,166.67,166.61,13.85055798]
[1730485481697,13.85055798,166.68,166.62,13.85055798]
[1730485481904,30.06735798,166.7,166.64,13.85055798]
[1730485482098,16.2168,166.7,166.65,13.85055798]
[1730485482297,30.06735798,166.7,166.64,13.85055798]
[1730485483497,13.85055798,166.69,166.64,13.85055798]
[1730485484627,15.98423284,166.72,166.68,37.62744198]
[1730485484932,13.85055798,166.72,166.67,13.85055798]
[1730485485121,13.85055798,166.7,166.65,13.85055798]
[1730485485313,13.85055798,166.68,166.63,13.85055798]
[1730485485499,13.85055798,166.68,166.6,22.1267]
[1730485485695,13.85055798,166.68,166.62,13.85055798]
[1730485485898,13.85055798,166.68,166.63,13.85055798]
[1730485486095,13.85055798,166.7,166.65,13.85055798]
[1730485487817,13.85055798,166.71,166.66,13.85055798]
[1730485489209,13.85055798,166.72,166.66,13.85055798]
[1730485489721,13.85055798,166.71,166.66,13.85055798]
[1730485490017,33.85055798,166.71,166.66,13.85055798]
[1730485490693,13.85055798,166.71,166.66,13.85055798]
[1730485493418,13.85055798,166.7,166.65,13.85055798]
[1730485495214,13.85055798,166.71,166.66,13.85055798]
[1730485496523,13.85055798,166.72,166.67,13.85055798]
[1730485496825,13.85055798,166.75,166.7,13.85055798]
[1730485497503,13.85055798,166.74,166.69,13.85055798]
[1730485498010,13.85055798,166.72,166.67,13.85055798]
[1730485498319,13.85055798,166.7,166.66,6.1336]
[1730485498707,13.85055798,166.71,166.66,19.98415798]
[1730485500427,13.85055798,166.72,166.67,13.85055798]
[1730485501002,16.6147,166.78,166.68,13.85055798]
[1730485501003,13.85055798,166.74,166.68,13.85055798]
[1730485501419,13.85055798,166.73,166.68,13.85055798]
[1730485501599,13.85055798,166.72,166.67,37.62744198]
[1730485502503,24.93361798,166.79,166.72,23.776884]
[1730485502706,11.08306,166.79,166.76,13.85055798]
[1730485504330,11.08306,166.79,166.75,13.85055798]
[1730485504630,13.85055798,166.79,166.74,23.776884]
[1730485504827,13.85055798,166.79,166.74,37.62744198]
[1730485505535,13.85055798,166.8,166.74,37.62744198]
[1730485506832,13.85055798,166.8,166.75,13.85055798]
[1730485507637,13.85055798,166.79,166.74,43.62454198]
[1730485508023,13.85055798,166.8,166.74,43.62454198]
[1730485509437,13.85055798,166.79,166.74,29.773984]
[1730485509609,13.85055798,166.77,166.72,5.998]
[1730485509813,13.85055798,166.76,166.71,19.84895798]
[1730485510326,13.85055798,166.76,166.7,28.84725798]
[1730485510519,13.85055798,166.76,166.68,22.2886]
[1730485510520,13.85055798,166.75,166.69,19.84965798]
[1730485510740,13.85055798,166.74,166.69,19.84965798]
[1730485510914,13.85055798,166.75,166.7,13.85055798]
[1730485511241,13.85055798,166.74,166.69,28.84845798]
[1730485511927,13.85055798,166.77,166.71,13.85055798]
[1730485512129,13.85055798,166.75,166.69,13.85055798]
[1730485512334,13.85055798,166.74,166.69,13.85055798]
[1730485513234,13.85055798,166.74,166.7,23.776884]
[1730485513624,13.85055798,166.71,166.66,13.85055798]
[1730485513827,13.85055798,166.71,166.66,19.85075798]
[1730485515223,13.85055798,166.71,166.67,23.776884]
[1730485516428,13.85055798,166.68,166.64,27.3629]
[1730485516628,13.85055798,166.68,166.63,13.85055798]
[1730485516835,13.85055798,166.67,166.62,19.85215798]
[1730485517029,13.85055798,166.67,166.62,13.85055798]
[1730485517232,13.85055798,166.72,166.54,14.89316766]
[1730485517233,13.85055798,166.64,166.59,19.85295798]
[1730485517725,13.85055798,166.64,166.58,13.85055798]
[1730485517922,13.85055798,166.63,166.58,13.85055798]
[1730485519244,13.85055798,166.63,166.58,19.85365798]
[1730485519543,13.85055798,166.63,166.58,13.85055798]
[1730485519745,13.85055798,166.61,166.56,13.85055798]
[1730485520942,13.85055798,166.62,166.57,13.85055798]
[1730485522755,13.85055798,166.64,166.59,13.85055798]
[1730485523452,13.85055798,166.63,166.58,13.85055798]
[1730485525041,13.85055798,166.66,166.61,13.85055798]
[1730485525250,13.85055798,166.67,166.62,13.85055798]
[1730485525547,13.85055798,166.66,166.62,13.85055798]
[1730485526063,13.85055798,166.64,166.59,37.62744198]
[1730485526222,13.85055798,166.62,166.57,13.85055798]
[1730485526558,13.85055798,166.61,166.56,43.63114198]
[1730485526737,13.85055798,166.59,166.55,28.86065798]
[1730485526934,13.85055798,166.61,166.56,13.85055798]
[1730485527443,13.85055798,166.62,166.57,13.85055798]
[1730485527942,13.85055798,166.61,166.56,13.85055798]
[1730485528145,13.85055798,166.6,166.55,28.86065798]
[1730485528350,13.85055798,166.59,166.55,23.776884]
[1730485528527,13.85055798,166.6,166.55,13.85055798]
[1730485528731,13.85055798,166.59,166.54,37.62744198]
[1730485529052,13.85055798,166.58,166.52,26.35195798]
[1730485529238,13.85055798,166.56,166.51,19.85595798]
[1730485529845,13.85055798,166.55,166.5,28.86515798]
[1730485530049,13.85055798,166.54,166.5,15.0146]
[1730485530227,13.85055798,166.55,166.5,28.86515798]
[1730485530428,13.85055798,166.55,166.5,34.87115798]
[1730485531632,13.85055798,166.56,166.51,13.85055798]
[1730485532039,13.85055798,166.55,166.5,28.86515798]
[1730485532341,13.85055798,166.56,166.51,13.85055798]
[1730485532542,13.85055798,166.59,166.54,13.85055798]
[1730485533562,13.85055798,166.58,166.53,13.85055798]
[1730485533854,13.85055798,166.57,166.52,19.85575798]
[1730485534352,13.85055798,166.57,166.52,13.85055798]
[1730485534742,13.85055798,166.57,166.52,19.85575798]
[1730485536130,13.85055798,166.58,166.53,13.85055798]
[1730485537047,13.85055798,166.59,166.54,13.85055798]
[1730485539351,13.85055798,166.57,166.52,15.0132]
[1730485539540,13.85055798,166.58,166.53,13.85055798]
[1730485540743,13.85055798,166.57,166.52,28.86375798]
[1730485540949,13.85055798,166.57,166.52,15.0132]
[1730485541245,13.85055798,166.57,166.51,43.63294198]
[1730485541750,13.85055798,166.57,166.52,13.85055798]
[1730485542443,13.85055798,166.58,166.53,13.85055798]
[1730485543752,13.85055798,166.59,166.53,13.85055798]
[1730485544438,13.85055798,166.6,166.54,13.85055798]
[1730485544755,13.85055798,166.61,166.55,13.85055798]
[1730485545454,13.85055798,166.6,166.55,13.85055798]
[1730485546857,13.85055798,166.61,166.55,13.85055798]
[1730485547362,30.48805798,166.66,166.6,13.85055798]
[1730485547651,16.6375,166.66,166.62,13.85055798]
[1730485548030,16.6375,166.66,166.61,13.85055798]
[1730485548439,16.6375,166.66,166.62,13.85055798]
[1730485549162,11.09084749,166.67,166.63,13.85055798]
[1730485550158,11.09084749,166.67,166.64,13.85055798]
[1730485551164,11.09084749,166.67,166.65,13.85055798]
[1730485551565,11.09084749,166.67,166.64,13.85055798]
[1730485552947,24.94140547,166.67,166.62,13.85055798]
[1730485554554,24.94140547,166.67,166.58,16.4373]
[1730485554555,13.85055798,166.65,166.6,13.85055798]
[1730485555052,13.85055798,166.65,166.59,13.85055798]
[1730485555466,13.85055798,166.65,166.6,13.85055798]
[1730485556471,13.85055798,166.62,166.57,13.85055798]
[1730485556968,13.85055798,166.63,166.58,13.85055798]
[1730485558975,13.85055798,166.62,166.57,13.85055798]
[1730485560484,13.85055798,166.64,166.59,13.85055798]
[1730485560655,17.52124749,166.67,166.6,13.85055798]
[1730485560656,13.85055798,166.66,166.6,13.85055798]
[1730485561272,13.85055798,166.66,166.61,13.85055798]
[1730485561475,13.85055798,166.65,166.6,13.85055798]
[1730485561658,13.85055798,166.65,166.59,13.85055798]
[1730485561979,13.85055798,166.65,166.6,37.62744198]
[1730485562367,13.85055798,166.66,166.61,13.85055798]
[1730485562756,11.09084749,166.67,166.63,13.85055798]
[1730485562951,11.09084749,166.67,166.64,13.85055798]
[1730485564277,11.09084749,166.67,166.65,13.85055798]
[1730485565076,11.09084749,166.67,166.64,13.85055798]
[1730485565677,11.09084749,166.67,166.63,37.62744198]
[1730485566552,11.09084749,166.67,166.64,13.85055798]
[1730485571284,11.09084749,166.67,166.63,13.85055798]
[1730485573081,11.09084749,166.67,166.64,13.85055798]
[1730485573284,13.85055798,166.69,166.64,13.85055798]
[1730485573487,13.85055798,166.68,166.63,13.85055798]
[1730485573782,13.85055798,166.68,166.46,7.3048979]
[1730485573783,13.85055798,166.65,166.6,13.85055798]
[1730485576286,13.85055798,166.66,166.61,13.85055798]
[1730485577479,13.85055798,166.65,166.6,13.85055798]
[1730485577668,15.4388,166.7,166.61,13.85055798]
[1730485577897,13.85055798,166.69,166.63,13.85055798]
[1730485578371,13.85055798,166.69,166.64,13.85055798]
[1730485578779,13.85055798,166.69,166.63,13.85055798]
[1730485579281,29.28935798,166.7,166.65,13.85055798]
[1730485582087,13.85055798,166.69,166.64,13.85055798]
[1730485583886,29.28935798,166.7,166.65,13.85055798]
[1730485584085,11.08664584,166.73,166.63,23.776884]
[1730485584086,13.85055798,166.72,166.67,13.85055798]
[1730485584700,13.85055798,166.71,166.65,13.85055798]
[1730485585188,13.85055798,166.66,166.6,13.85055798]
[1730485585395,13.85055798,166.63,166.58,20.18335798]
[1730485585566,80.290684,166.71,166.54,28.6422]
[1730485585567,15.4584,166.67,166.54,28.6422]
[1730485585768,13.85055798,166.61,166.55,13.85055798]
[1730485586471,13.85055798,166.59,166.54,20.22735798]
[1730485586889,13.85055798,166.58,166.53,13.85055798]
[1730485587295,13.85055798,166.59,166.54,13.85055798]
[1730485588586,13.85055798,166.58,166.53,1.50197552]
[1730485588895,13.85055798,166.56,166.53,1.50197552]
[1730485589081,13.85055798,166.56,166.52,1.50197552]
[1730485589277,13.85055798,166.56,166.51,13.85055798]
[1730485589486,13.85055798,166.57,166.52,13.85055798]
[1730485592400,13.85055798,166.59,166.53,13.85055798]
[1730485593975,6.002,166.61,166.55,13.85055798]
[1730485593976,13.85055798,166.61,166.55,13.85055798]
[1730485594179,13.85055798,166.61,166.56,13.85055798]
[1730485594595,13.85055798,166.61,166.55,13.85055798]
[1730485595309,13.85055798,166.6,166.55,13.85055798]
[1730485595614,13.85055798,166.6,166.54,37.62744198]
[1730485595788,13.85055798,166.59,166.54,37.62744198]
[1730485595992,13.85055798,166.58,166.53,28.86285798]
[1730485596498,13.85055798,166.58,166.53,23.776884]
[1730485596992,13.85055798,166.58,166.53,37.62744198]
[1730485597910,13.85055798,166.6,166.55,13.85055798]
[1730485598209,13.85055798,166.61,166.55,13.85055798]
[1730485598995,21.3514,166.64,166.53,29.781684]
[1730485598996,13.85055798,166.62,166.56,13.85055798]
[1730485599299,13.85055798,166.6,166.55,13.85055798]
[1730485599687,13.85055798,166.61,166.55,13.85055798]
[1730485599888,13.85055798,166.61,166.55,19.85455798]
[1730485601195,13.85055798,166.6,166.54,19.85475798]
[1730485601678,13.85055798,166.61,166.56,13.85055798]
[1730485601881,13.85055798,166.61,166.55,13.85055798]
[1730485602108,13.85055798,166.6,166.55,13.85055798]
[1730485603111,13.85055798,166.61,166.55,13.85055798]
[1730485603798,13.85055798,166.62,166.56,13.85055798]
[1730485604109,13.85055798,166.61,166.55,19.85465798]
[1730485606206,13.85055798,166.61,166.56,13.85055798]
[1730485606404,13.85055798,166.62,166.56,13.85055798]
[1730485607411,13.85055798,166.61,166.56,13.85055798]
[1730485607712,13.85055798,166.6,166.55,34.86515798]